[Event "26th Hit Open-A 2022"]
[Site "Nova Gorica"]
[Date "2022.09.20"]
[Round "7.14"]
[White "Davies, Nigel R"]
[Black "Devnani Kush"]
[Result "1-0"]
[ECO "A06"]
[WhiteElo "2420"]
[BlackElo "2095"]
[Annotator "ChessBase"]
[PlyCount "119"]
[EventDate "2022.09.16"]
[EventType "swiss"]
[EventCountry "SLO"]
[SourceTitle "playchess.com"]
[Source "ChessBase"]
[SourceQuality "1"]
[TimeControl "5400+30"]

1. c4 {[%emt 0:03:30]} c6 {[%emt 0:00:05]} 2. Nf3 {[%emt 0:00:19]} d5 {[%emt 0:00:06]} 3. e3 {[%emt 0:00:03]} Nf6 {[%emt 0:00:32]} 4. b3 {[%emt 0:03:29]} e6 {[%emt 0:01:06]} 5. Bb2 {[%emt 0:00:09]} Bd6 {[%emt 0:06:47]} 6. Nc3 {[%emt 0:01:19]} e5 {[%emt 0:09:23]} 7. cxd5 {[%emt 0:00:14]} cxd5 {[%emt 0:00:09]} 8. Nb5 {[%emt 0:00:10]} Nc6 {[%emt 0:00:08]} 9. Nxd6+ {[%emt 0:00:11]} Qxd6 {[%emt 0:00:05]} 10. Bb5 {[%emt 0:02:48]} e4 {[%emt 0:01:39]} 11. Nd4 {[%emt 0:00:18]} O-O {[%emt 0:15:30]} 12. Be2 {[%emt 0:05:16]} a6 {[%emt 0:11:02]} 13. O-O {[%emt 0:02:35]} Bd7 {[%emt 0:05:24]} 14. f4 {[%emt 0:01:21]} Nxd4 {[%emt 0:18:56]} 15. Bxd4 {[%emt 0:00:25]} Bb5 {[%emt 0:00:03]} 16. Bxb5 {[%emt 0:04:32]} axb5 {[%emt 0:00:01]} 17. Qc1 {[%emt 0:00:13]} Rfc8 {[%emt 0:01:16]} 18. Qb2 {[%emt 0:00:09]} Rc6 {[%emt 0:04:24]} 19. a4 {[%emt 0:04:27]} b4 {[%emt 0:02:36]} 20. Rac1 {[%emt 0:01:31]} Rac8 {[%emt 0:03:06]} 21. Be5 {[%emt 0:02:10]} Qe7 {[%emt 0:03:15]} 22. Rxc6 {[%emt 0:04:19]} Rxc6 {[%emt 0:00:07]} 23. Qd4 {[%emt 0:01:28]} Qc5 {[%emt 0:06:07]} 24. h3 {[%emt 0:11:38]} Qxd4 {[%emt 0:01:04]} 25. Bxd4 {[%emt 0:00:05]} Nd7 {[%emt 0:01:29]} 26. Kf2 {[%emt 0:00:47]} Nc5 {[%emt 0:00:26]} 27. Bxc5 {[%emt 0:00:47]} Rxc5 {[%emt 0:00:01]} 28. Ke2 {[%emt 0:00:31]} f5 {[%emt 0:01:45]} 29. g4 {[%emt 0:01:37]} fxg4 {[%emt 0:00:38]} 30. hxg4 {[%emt 0:00:08]} Kf7 {[%emt 0:00:54]} 31. Rh1 {[%emt 0:00:55]} h6 {[%emt 0:00:55]} 32. Rh5 {[%emt 0:00:36]} Ke6 {[%emt 0:03:50]} 33. Re5+ {[%emt 0:02:38]} Kf6 {[%emt 0:00:00]} 34. Re8 {[%emt 0:00:39]} Rc7 {[%emt 0:00:51]} 35. Ra8 {[%emt 0:04:55]} g6 {[%emt 0:02:48]} 36. Ra5 {[%emt 0:00:00]} Ke6 {[%emt 0:00:05]} 37. Rb5 {[%emt 0:00:00]} h5 {[%emt 0:00:10]} 38. Rb6+ {[%emt 0:00:00]} Kf7 {[%emt 0:00:06]} 39. gxh5 {[%emt 0:00:00]} gxh5 {[%emt 0:00:04]} 40. Rh6 {[%emt 0:00:00]} Rc2 {[%emt 0:00:03]} 41. Rxh5 {[%emt 0:00:05]} d4 {[%emt 0:01:52]} 42. exd4 {[%emt 0:00:12]} Rb2 {[%emt 0:00:03]} 43. Ke3 {[%emt 0:02:10]} Rxb3+ {[%emt 0:00:04]} 44. Kxe4 {[%emt 0:00:07]} Ra3 {[%emt 0:01:04]} 45. a5 {[%emt 0:02:46]} Ra2 {[%emt 0:00:20]} 46. Rb5 {[%emt 0:00:10]} Rxd2 {[%emt 0:01:14]} 47. Rxb7+ {[%emt 0:00:38]} Kf6 {[%emt 0:00:01]} 48. Rxb4 {[%emt 0:00:16]} Re2+ {[%emt 0:00:04]} 49. Kf3 {[%emt 0:00:28]} Ra2 {[%emt 0:00:06]} 50. Rb6+ {[%emt 0:00:36]} Kf5 {[%emt 0:00:01]} 51. Rb5+ {[%emt 0:00:07]} Kf6 {[%emt 0:00:01]} 52. Ke4 {[%emt 0:00:25]} Ke6 {[%emt 0:00:08]} 53. Rb6+ {[%emt 0:00:27]} Ke7 {[%emt 0:00:13]} 54. a6 {[%emt 0:00:06]} Ra5 {[%emt 0:00:04]} 55. d5 {[%emt 0:00:14]} Kd7 {[%emt 0:00:16]} 56. Ke5 {[%emt 0:01:17]} Ra2 {[%emt 0:00:09]} 57. f5 {[%emt 0:04:14]} Ra5 {[%emt 0:01:44]} 58. f6 {[%emt 0:02:09]} Ra1 {[%emt 0:00:10]} 59. Rb7+ {[%emt 0:00:25]} Kc8 {[%emt 0:00:05]} 60. f7 {[%emt 0:00:59]} 1-0

[Event "26th Hit Open-A 2022"]
[Site "Nova Gorica"]
[Date "2022.09.20"]
[Round "7.15"]
[White "Tisaj, Domen"]
[Black "Gschiel, Alexander"]
[Result "1/2-1/2"]
[ECO "A13"]
[WhiteElo "2325"]
[BlackElo "2196"]
[Annotator "TA"]
[PlyCount "80"]
[EventDate "2022.09.16"]
[EventType "swiss"]
[EventCountry "SLO"]
[SourceTitle "playchess.com"]
[Source "ChessBase"]
[SourceQuality "1"]
[TimeControl "5400+30"]

{[%evp 17,80,-16,-16,-31,-6,-8,-4,-25,-20,-54,-16,-32,-8,-11,-8,-9,-6,-36,-18,-50,-41,-79,-74,-100,-93,-110,-111,-93,-84,-126,-115,-120,-128,-132,-143,-268,-51,-40,-46,-46,0,-37,0,0,8,0,11,-12,-12,-12,-16,-22,-12,-12,-14,-23,0,0,0,0,0,0,0,0,0]} 1. Nf3 {[%emt 0:00:15]} Nf6 {[%emt 0:00:21]} 2. e3 {[%emt 0:00:28]} e6 {[%emt 0:00:18]} 3. c4 {[%emt 0:00:13]} b6 {[%emt 0:00:07]} 4. b3 {[%emt 0:00:37]} Bb7 {[%emt 0:00:37]} 5. Bb2 {[%emt 0:00:14]} Be7 {[%emt 0:00:26]} 6. Nc3 {[%emt 0:00:37]} O-O {[%emt 0:01:08]} 7. Qc2 {[%emt 0:00:25]} c5 {[%emt 0:01:38]} 8. Be2 {[%emt 0:01:14]} Nc6 {[%emt 0:05:10]} 9. O-O {[%emt 0:06:16]} d5 {[%emt 0:02:06]} 10. cxd5 {[%emt 0:02:41] A13: English Opening: 1...e6.} Nb4 {[%emt 0:00:22]} 11. Qb1 {[%emt 0:03:17]} Nbxd5 {[%emt 0:04:10] [#]} 12. Ng5 $146 {[%emt 0:03:24]} ({Predecessor:} 12. Nxd5 Qxd5 13. Rd1 Rfd8 14. d4 Rac8 15. Ba3 Qc6 16. Qb2 Qe8 17. Rac1 cxd4 18. Nxd4 {1-0 (29) Martorell Aguado,J (2110)-Leiro Giralt,D (2225) Barcelona 2014}) 12... Nxc3 {[%emt 0:04:42]} 13. Bxc3 {[%emt 0:00:14]} h6 {[%emt 0:00:11]} ({But not} 13... Qd5 14. Bf3 Qxg5 15. Bxb7 $11) 14. Bxf6 {[%emt 0:03:15][%csl Gg5][%cal Rb1h7]} hxg5 {[%emt 0:01:23]} 15. Bc3 {[%emt 0:00:32]} Bf6 $40 {[%emt 0:05:10][%mdl 128] Black is up to no good.} 16. Qb2 {[%emt 0:00:40]} Bxc3 {[%emt 0:00:22]} 17. Qxc3 {[%emt 0:00:11]} Qe7 {[%emt 0:14:34]} 18. f4 {[%emt 0:08:53]} Rad8 {[%emt 0:06:00]} 19. f5 {[%emt 0:10:58]} Qd7 {[%emt 0:04:34][%csl LRd2,LRf5]} 20. fxe6 {[%emt 0:27:23]} Qxd2 {[%emt 0:04:29]} 21. Qxd2 {[%emt 0:02:14]} Rxd2 {[%emt 0:00:02]} 22. exf7+ {[%emt 0:03:03]} Rxf7 {[%emt 0:00:15]} 23. Rfe1 {[%emt 0:00:27]} g4 {[%emt 0:10:41]} 24. a3 {[%emt 0:01:28] [#]} Bf3 $1 {[%emt 0:04:29][%mdl 512]} 25. Bf1 {[%emt 0:03:28]} (25. gxf3 gxf3) 25... Bd5 {[%emt 0:02:22][%cal Of7f1] White must now prevent ...Rxf1+!} 26. b4 {[%emt 0:00:27] [#]} (26. Re2 $17 Rxe2 27. Bxe2) 26... c4 $2 {[%emt 0:01:38]} (26... Rxf1+ $1 $19 {[%mdl 512]} 27. Kxf1 Bxg2+ 28. Kg1 Bf3) 27. Re2 $1 $15 {[%emt 0:02:32]} Rxe2 {[%emt 0:05:14]} 28. Bxe2 {[%emt 0:00:02][%mdl 4096] Endgame KRB-KRB} Rc7 {[%emt 0:01:14]} (28... Be6 $15 {might be stronger.}) 29. Rc1 {[%emt 0:01:35]} b5 {[%emt 0:03:59]} 30. Bxg4 {[%emt 0:02:00]} Be4 {[%emt 0:01:18]} 31. Kf2 {[%emt 0:01:11]} Kf7 {[%emt 0:04:30]} 32. Rc3 {[%emt 0:01:35]} Kf6 {[%emt 0:00:41][%mdl 1024] Black has compensation.} 33. Bf3 {[%emt 0:02:10]} Ke5 {[%emt 0:01:53]} 34. Ke2 {[%emt 0:06:16]} g5 {[%emt 0:00:48]} 35. h3 {[%emt 0:01:37]} Rd7 {[%emt 0:03:12]} 36. Ke1 $1 {[%emt 0:02:31]} Bxf3 {[%emt 0:00:54]} 37. gxf3 {[%emt 0:00:09] The position is equal.} Rh7 {[%emt 0:00:04]} 38. a4 $1 {[%emt 0:00:55]} a6 {[%emt 0:03:11]} 39. axb5 {[%emt 0:00:54]} axb5 {[%emt 0:00:00]} 40. Ra3 $1 {[%emt 0:02:06]} Rxh3 {[%emt 0:00:57] Weighted Error Value: White=0.13 (very precise) /Black=0.15 (very precise)} 1/2-1/2

[Event "26th Hit Open-A 2022"]
[Site "Nova Gorica"]
[Date "2022.09.20"]
[Round "7.16"]
[White "Goroshkov, Maksym"]
[Black "Callsen, Niklas"]
[Result "1/2-1/2"]
[ECO "B22"]
[WhiteElo "2315"]
[BlackElo "2079"]
[Annotator "TA"]
[PlyCount "68"]
[EventDate "2022.09.16"]
[EventType "swiss"]
[EventCountry "SLO"]
[SourceTitle "playchess.com"]
[Source "ChessBase"]
[SourceQuality "1"]
[TimeControl "5400+30"]

{[%evp 24,68,-4,-20,-20,-41,-23,-39,-17,-52,-52,-67,-64,-53,-55,-62,0,-70,-74,-78,-81,-114,-94,-135,-6,-21,0,0,0,0,0,0,0,-1,-16,-6,0,0,0,0,0,0,0,0,0,0,0]} 1. e4 {[%emt 0:00:10][%cal Be2e4,Be4e5][%mdl 32]} c5 {[%emt 0:00:07]} 2. c3 {[%emt 0:00:06]} Nf6 {[%emt 0:00:04]} 3. e5 {[%emt 0:00:02]} Nd5 {[%emt 0:00:06]} 4. Bc4 {[%emt 0:00:03]} Nb6 {[%emt 0:00:31]} 5. Bb3 {[%emt 0:00:06]} d5 {[%emt 0:01:53]} 6. exd6 {[%emt 0:00:31]} Qxd6 {[%emt 0:00:29]} 7. d4 {[%emt 0:01:27]} cxd4 {[%emt 0:00:45]} 8. cxd4 {[%emt 0:02:35]} Be6 {[%emt 0:00:22]} 9. Nc3 {[%emt 0:01:37]} Bxb3 {[%emt 0:01:27]} 10. Qxb3 {[%emt 0:00:37]} e6 {[%emt 0:13:34]} 11. Nf3 {[%emt 0:02:30]} Nc6 {[%emt 0:01:43]} 12. O-O {[%emt 0:00:37]} Be7 {[%emt 0:07:18]} 13. Be3 {[%emt 0:01:37] 13.Rd1 is setting a new trend.} O-O {[%emt 0:05:25] B22: Sicilian: 2 c3.} 14. Rad1 {[%emt 0:00:27]} Rfd8 {[%emt 0:02:42]} 15. a3 {[%emt 0:08:46]} Na5 {[%emt 0:07:12] [#] Black is slightly better.} 16. Qc2 $146 {[%emt 0:01:01]} ({Predecessor:} 16. Qb5 Nac4 17. Qh5 Nxb2 18. Ne5 Rf8 19. Rb1 N2c4 20. a4 Nxe3 21. fxe3 f6 22. Nb5 {0-1 (33) Anakiev,D (2090)-Zupe,M (2410) Bled 1996}) 16... Rac8 {[%emt 0:02:01]} 17. Ng5 {[%emt 0:02:03]} Bxg5 {[%emt 0:08:47]} 18. Bxg5 {[%emt 0:00:06]} Rd7 {[%emt 0:01:30]} 19. Qe2 {[%emt 0:01:14]} Nb3 {[%emt 0:06:01]} (19... Nc6 $15) 20. Qg4 {[%emt 0:03:42]} (20. d5 $11 Nxd5 21. Qg4) 20... f5 $1 $15 {[%emt 0:06:58]} (20... Nxd4 $2 21. Bf6 Qf8 22. Rxd4 $18) 21. Qh3 {[%emt 0:00:58][%cal Od4d5]} Nxd4 {[%emt 0:01:51][%cal Oc8c3] ...Rxc3! is the strong threat. Pair of Knights!} 22. Kh1 {[%emt 0:07:21]} e5 {[%emt 0:03:18]} 23. Be3 {[%emt 0:00:24]} Qf6 {[%emt 0:01:02]} ({Better is} 23... Nc4 $17 24. Nb5 Qc5) 24. f4 $11 {[%emt 0:00:30] The position is equal.} exf4 {[%emt 0:04:35]} (24... g6 {with more complications.} 25. fxe5 Qxe5 26. Rfe1 Nc2) 25. Bxd4 {[%emt 0:02:09][%mdl 64] [#] Remove Defender} ({Much weaker is} 25. Rxf4 {[#]} Ne2 $1 26. Rff1 (26. Rxd7 $2 Nxf4 27. Rxg7+ Qxg7 $19) 26... Nxc3 27. Rxd7 Nxd7 $17) 25... Rxd4 {[%emt 0:00:06]} 26. Rxd4 {[%emt 0:00:09]} Qxd4 {[%emt 0:00:12]} 27. Qxf5 {[%emt 0:00:10]} Rf8 {[%emt 0:01:32]} 28. Qe6+ {[%emt 0:00:07]} Kh8 {[%emt 0:00:20]} 29. Qe7 {[%emt 0:00:23][%csl LRb7,LRf8][%cal Re7f8]} Qf6 {[%emt 0:03:14]} 30. Qxb7 {[%emt 0:00:22]} Nc4 {[%emt 0:01:21]} 31. Nd5 {[%emt 0:10:03]} Qxb2 {[%emt 0:03:39]} 32. Qxa7 {[%emt 0:00:16] Strongly threatening Qc5.} Qxa3 {[%emt 0:02:47]} 33. Qxa3 {[%emt 0:00:13]} Nxa3 {[%emt 0:00:05]} 34. Rxf4 {[%emt 0:00:09]} Rxf4 {[%emt 0:01:03] Weighted Error Value: White=0.16 (very precise) /Black=0.19 (very precise)} 1/2-1/2

[Event "26th Hit Open-A 2022"]
[Site "Nova Gorica"]
[Date "2022.09.20"]
[Round "7.17"]
[White "Guid, Matej"]
[Black "Debevec, Blaz"]
[Result "1/2-1/2"]
[ECO "C24"]
[WhiteElo "2292"]
[BlackElo "2056"]
[Annotator "TA"]
[PlyCount "60"]
[EventDate "2022.09.16"]
[EventType "swiss"]
[EventCountry "SLO"]
[SourceTitle "playchess.com"]
[Source "ChessBase"]
[SourceQuality "1"]
[TimeControl "5400+30"]

{[%evp 17,60,8,10,9,6,6,4,0,8,10,5,10,10,0,4,0,9,8,13,7,33,27,70,25,27,29,23,22,26,11,11,0,0,0,11,8,12,0,1,2,13,0,0,-36,0]} 1. e4 {[%emt 0:00:02]} e5 {[%emt 0:02:22]} 2. Bc4 {[%emt 0:00:07]} Nf6 {[%emt 0:00:54]} 3. d3 {[%emt 0:00:05]} c6 {[%emt 0:01:06]} 4. Nf3 {[%emt 0:00:05]} d5 {[%emt 0:01:45]} 5. Bb3 {[%emt 0:00:05]} Bd6 {[%emt 0:00:42]} 6. Nc3 {[%emt 0:00:21]} dxe4 {[%emt 0:01:00]} 7. Ng5 {[%emt 0:00:17]} O-O {[%emt 0:00:51]} 8. Ncxe4 {[%emt 0:00:54]} Nxe4 {[%emt 0:00:10]} 9. Nxe4 {[%emt 0:00:21]} Bf5 {[%emt 0:00:27]} 10. Qf3 $1 {[%emt 0:03:39] 10.Qf3 is better than 10.0-0. C24: Bishop's Opening: 2...Nf6.} Bxe4 {[%emt 0:01:11]} 11. dxe4 {[%emt 0:01:25]} Nd7 {[%emt 0:00:42]} 12. c3 {[%emt 0:03:09] The position is equal.} (12. O-O {is more complex.} Nc5 13. Rd1 Qe7 14. Be3) 12... Nc5 {[%emt 0:00:48]} 13. Bc2 {[%emt 0:00:10]} a5 {[%emt 0:00:21]} 14. O-O {[%emt 0:00:27]} Qe7 {[%emt 0:01:00] [#]} 15. g3 $146 {[%emt 0:20:24]} ({Predecessor:} 15. Be3 Rfd8 16. g3 Ne6 17. Rad1 Bc5 18. Bc1 Rxd1 19. Rxd1 Rd8 20. Rf1 Ba7 21. h4 {1-0 (48) Kovalev,V (2703)-Kacharava,N (2424) Skopje 2019}) 15... a4 {[%emt 0:00:54]} 16. Qe2 {[%emt 0:05:20]} Rfe8 {[%emt 0:04:43]} 17. Kg2 {[%emt 0:01:58]} b5 {[%emt 0:01:21]} 18. Be3 {[%emt 0:05:51]} Rad8 {[%emt 0:02:08]} 19. Rfd1 {[%emt 0:02:58]} Bc7 {[%emt 0:01:57][%cal Bd6c7,Bc7b6,Bb6a5,Ba5b4][%mdl 32]} 20. c4 {[%emt 0:00:54] [#] Hoping for Rxd8.} b4 {[%emt 0:03:28]} 21. Bxc5 {[%emt 0:04:02]} Qxc5 {[%emt 0:03:13]} 22. Bxa4 {[%emt 0:00:08]} Bb6 {[%emt 0:01:20]} 23. Rac1 {[%emt 0:05:53]} g6 {[%emt 0:02:51]} 24. Rc2 {[%emt 0:01:38]} Rxd1 {[%emt 0:01:21]} 25. Qxd1 {[%emt 0:01:27]} Rd8 {[%emt 0:00:04]} 26. Qf3 {[%emt 0:10:55]} Kg7 {[%emt 0:02:06]} 27. a3 {[%emt 0:02:18]} Ba5 {[%emt 0:06:09]} 28. axb4 {[%emt 0:03:02]} Bxb4 {[%emt 0:00:07]} 29. Re2 {[%emt 0:06:01]} Rd6 {[%emt 0:01:24]} ({Much less strong is} 29... Qxc4 30. Bb3 Qd4 31. Qxf7+ Kh6 32. Qc4 $16) 30. b3 {[%emt 0:02:36]} Qd4 {[%emt 0:07:11] Weighted Error Value: White=0.08 (flawless) /Black=0.05 (flawless)} (30... Bd2 $5 {[%cal Rc5d4]}) 1/2-1/2

[Event "26th Hit Open-A 2022"]
[Site "Nova Gorica"]
[Date "2022.09.20"]
[Round "7.18"]
[White "Charaus, Florian"]
[Black "Lavrencic, Matic"]
[Result "0-1"]
[ECO "E48"]
[WhiteElo "1993"]
[BlackElo "2274"]
[Annotator "TA"]
[PlyCount "94"]
[EventDate "2022.09.16"]
[EventType "swiss"]
[EventCountry "SLO"]
[SourceTitle "playchess.com"]
[Source "ChessBase"]
[SourceQuality "1"]
[TimeControl "5400+30"]

{[%evp 11,93,0,2,-8,-17,-20,-11,-20,5,-14,-4,-6,-6,-13,-18,-10,-6,-22,0,-13,0,0,0,0,0,0,5,0,0,0,0,-62,-59,-57,-55,-54,-52,-48,-54,-82,-79,-83,-56,-117,-51,-48,-39,-39,-40,-42,-37,-39,-29,-44,-13,-32,-12,-16,-10,-6,-8,-10,-9,-16,0,-12,-4,-4,-10,-225,-214,-327,-313,-327,-317,-393,-311,-617,-493,-29997,-29998,-29998,-29999,-29999]} 1. d4 {[%emt 0:00:03]} Nf6 {[%emt 0:00:12]} 2. c4 {[%emt 0:00:05]} e6 {[%emt 0:00:14]} 3. Nc3 {[%emt 0:00:04]} Bb4 {[%emt 0:00:11]} 4. e3 {[%emt 0:00:05]} O-O {[%emt 0:00:11]} 5. Bd3 {[%emt 0:00:02]} d5 {[%emt 0:00:24]} 6. cxd5 {[%emt 0:00:06]} exd5 {[%emt 0:00:09]} 7. a3 {[%emt 0:00:11] E48: Nimzo-Indian: Rubinstein: 5 Bd3 d5 including 6 Ne2, but excluding 6 a3.} Bd6 {[%emt 0:00:09]} 8. Qc2 {[%emt 0:00:18]} c6 {[%emt 0:00:49]} 9. Nge2 {[%emt 0:00:36] The position is equal.} b6 {[%emt 0:01:09]} 10. O-O {[%emt 0:01:16]} Re8 {[%emt 0:01:01]} 11. Ng3 {[%emt 0:00:27]} Ba6 {[%emt 0:05:38] [#]} 12. Bd2 $146 {[%emt 0:12:35]} ({Predecessor:} 12. Nf5 Bf8 13. f3 Bxd3 14. Qxd3 g6 15. Ng3 Nbd7 16. b3 {0-1 (34) Boehme,H-Petzold,V freechess.de 2019}) 12... Bxd3 {[%emt 0:01:54]} 13. Qxd3 {[%emt 0:00:04]} Nbd7 {[%emt 0:03:40]} 14. Rac1 {[%emt 0:00:25]} Bf8 {[%emt 0:04:19]} 15. Rfd1 {[%emt 0:08:48]} Qc8 {[%emt 0:11:03]} 16. e4 {[%emt 0:04:04]} dxe4 {[%emt 0:02:08]} 17. Ngxe4 {[%emt 0:00:09]} Nxe4 {[%emt 0:07:40]} 18. Nxe4 {[%emt 0:00:06]} Qb7 {[%emt 0:00:29]} 19. Qf3 {[%emt 0:10:33]} h6 {[%emt 0:10:38] Prevents Ng5.} 20. Bf4 {[%emt 0:05:39]} Rac8 {[%emt 0:05:24]} 21. Bd6 {[%emt 0:06:02] [#]} (21. Re1 $11) 21... Rxe4 $1 $15 {[%emt 0:02:42]} 22. Bxf8 {[%emt 0:00:06]} Nf6 {[%emt 0:16:49]} 23. Bd6 {[%emt 0:02:46]} Re6 {[%emt 0:00:34]} 24. Bf4 {[%emt 0:06:32]} Rce8 {[%emt 0:04:14]} 25. Bd2 {[%emt 0:04:52]} Qd7 {[%emt 0:01:36]} 26. Bc3 {[%emt 0:11:31]} Nd5 {[%emt 0:00:32] Threatens to win with ...Rf6.} 27. h3 {[%emt 0:03:47]} (27. g3 $15) 27... Qd6 {[%emt 0:06:25] Black is more active.} (27... Rf6 $1 $17 {[%cal Rf6f3]} 28. Qg4 Qxg4 29. hxg4 Re2) 28. Re1 {[%emt 0:01:53]} Rxe1+ {[%emt 0:01:07]} 29. Rxe1 {[%emt 0:00:05]} Rxe1+ {[%emt 0:00:07]} 30. Bxe1 {[%emt 0:00:04][%mdl 4096] Endgame KQB-KQN} a5 {[%emt 0:03:51]} 31. Qe4 {[%emt 0:01:48]} Qd7 {[%emt 0:00:28] Inhibits Qe8+.} 32. Bd2 {[%emt 0:00:41]} a4 {[%emt 0:00:51]} 33. f3 {[%emt 0:01:59]} b5 {[%emt 0:00:41]} 34. Kf2 {[%emt 0:02:23]} f5 {[%emt 0:01:55]} 35. Qe5 {[%emt 0:00:25]} Kf7 {[%emt 0:00:21]} 36. g4 {[%emt 0:01:37]} fxg4 {[%emt 0:00:40]} 37. hxg4 {[%emt 0:00:09]} Nf6 {[%emt 0:01:17]} 38. g5 {[%emt 0:02:27]} hxg5 {[%emt 0:00:32]} 39. Bxg5 {[%emt 0:00:07]} Nd5 {[%emt 0:00:20]} 40. f4 $2 {[%emt 0:06:52] [#] This move loses the game for White.} (40. Kg3 $11) 40... Nb6 $1 $19 {[%emt 0:01:48]} 41. Qe3 {[%emt 0:05:09] [#]} (41. Qe2 {was called for.}) 41... Nc4 $1 {[%emt 0:00:32][%csl LRb2,LRe3]} 42. Qc3 {[%emt 0:00:28]} Qd5 {[%emt 0:00:37]} 43. Kg3 {[%emt 0:01:05]} Nd6 {[%emt 0:01:27] Strongly threatening ...Ne4+.} 44. Qa5 $2 {[%emt 0:01:50]} (44. Qd3) 44... Nf5+ {[%emt 0:00:51]} 45. Kg4 {[%emt 0:00:20]} (45. Kf2 $19 Qxd4+ 46. Kf3 Qe3+ 47. Kg2 Qe4+ 48. Kf2) 45... Qg2+ {[%emt 0:00:57] Black mates.} 46. Kxf5 {[%emt 0:00:11]} g6+ {[%emt 0:00:05]} 47. Ke5 {[%emt 0:00:07]} Qd5# {[%emt 0:00:05] Weighted Error Value: White=0.46/Black=0.09 (flawless)} 0-1